[Event "Early Titled Tuesday Blitz | February 8 2022"]
[White "Howell, David W L"]
[Black "Ezat, Mohamed"]
[WhiteFideId "410608"]
[BlackFideId "10600906"]
[WhiteElo "2559"]
[BlackElo "2386"]
[Result "1-0"]
[Round "02"]
[TimeControl "180+1"]
[Date "2022.02.08"]
[WhiteClock "0:00:06"]
[BlackClock "0:00:07"]

1. e4 {[%clk 0:03:00]}  c6 {[%clk 0:02:59]} 2. Nc3 {[%clk 0:02:55]}  d5 {[%clk 0:02:59]} 3. Qe2 {[%clk 0:02:56]}  dxe4 {[%clk 0:02:55]} 4. Nxe4 {[%clk 0:02:55]}  Bf5 {[%clk 0:02:54]} 5. d3 {[%clk 0:02:50]}  e6 {[%clk 0:02:54]} 6. Nf3 {[%clk 0:02:44]}  Nd7 {[%clk 0:02:51]} 7. g3 {[%clk 0:02:41]}  Ngf6 {[%clk 0:02:50]} 8. Bg2 {[%clk 0:02:42]}  Be7 {[%clk 0:02:46]} 9. O-O {[%clk 0:02:41]}  O-O {[%clk 0:02:46]} 10. Re1 {[%clk 0:02:36]}  Qb6 {[%clk 0:02:36]} 11. c3 {[%clk 0:02:30]}  Rad8 {[%clk 0:02:35]} 12. Be3 {[%clk 0:02:23]}  Qa5 {[%clk 0:02:29]} 13. Bf4 {[%clk 0:02:15]}  Qa6 {[%clk 0:02:17]} 14. Qc2 {[%clk 0:01:57]}  Nc5 {[%clk 0:02:13]} 15. Nxc5 {[%clk 0:01:12]}  Bxc5 {[%clk 0:02:12]} 16. b4 {[%clk 0:01:13]}  Bxd3 {[%clk 0:02:07]} 17. Qb2 {[%clk 0:01:09]}  Bd6 {[%clk 0:01:21]} 18. Ne5 {[%clk 0:01:07]}  Bg6 {[%clk 0:01:05]} 19. a4 {[%clk 0:01:02]}  Bxe5 {[%clk 0:00:57]} 20. Bxe5 {[%clk 0:01:03]}  Qd3 {[%clk 0:00:55]} 21. h3 {[%clk 0:00:57]}  Qc2 {[%clk 0:00:49]} 22. Qxc2 {[%clk 0:00:55]}  Bxc2 {[%clk 0:00:49]} 23. b5 {[%clk 0:00:56]}  Bb3 {[%clk 0:00:14]} 24. bxc6 {[%clk 0:00:48]}  bxc6 {[%clk 0:00:15]} 25. Bxc6 {[%clk 0:00:48]}  Bd5 {[%clk 0:00:15]} 26. Bb5 {[%clk 0:00:46]}  Ne4 {[%clk 0:00:14]} 27. Red1 {[%clk 0:00:38]}  Ng5 {[%clk 0:00:13]} 28. Kf1 {[%clk 0:00:38]}  Nf3 {[%clk 0:00:09]} 29. Bc7 {[%clk 0:00:27]}  Rc8 {[%clk 0:00:08]} 30. Ba5 {[%clk 0:00:23]}  Nh2+ {[%clk 0:00:08]} 31. Kg1 {[%clk 0:00:20]}  Nf3+ {[%clk 0:00:08]} 32. Kf1 {[%clk 0:00:21]}  Nh2+ {[%clk 0:00:08]} 33. Ke1 {[%clk 0:00:20]}  Nf3+ {[%clk 0:00:08]} 34. Ke2 {[%clk 0:00:18]}  Ne5 {[%clk 0:00:08]} 35. Rxd5 {[%clk 0:00:11]}  exd5 {[%clk 0:00:07]} 36. Bb4 {[%clk 0:00:12]}  Rfd8 {[%clk 0:00:07]} 37. Be7 {[%clk 0:00:11]}  Re8 {[%clk 0:00:07]} 38. Bxe8 {[%clk 0:00:08]}  Rxe8 {[%clk 0:00:08]} 39. Bc5 {[%clk 0:00:09]}  Nd7+ {[%clk 0:00:03]} 40. Be3 {[%clk 0:00:08]}  Nb6 {[%clk 0:00:03]} 41. Kd3 {[%clk 0:00:08]}  Nc4 {[%clk 0:00:03]} 42. Bxa7 {[%clk 0:00:08]}  Ra8 {[%clk 0:00:03]} 43. Rb1 {[%clk 0:00:04]}  f6 {[%clk 0:00:02]} 44. Rb8+ {[%clk 0:00:05]}  Rxb8 {[%clk 0:00:03]} 45. Bxb8 {[%clk 0:00:06]}  Nb6 {[%clk 0:00:03]} 46. a5 {[%clk 0:00:05]}  Nd7 {[%clk 0:00:04]} 47. Bd6 {[%clk 0:00:04]}  Kf7 {[%clk 0:00:04]} 48. a6 {[%clk 0:00:04]}  Ke6 {[%clk 0:00:05]} 49. a7 {[%clk 0:00:04]}  Nb6 {[%clk 0:00:05]} 50. Bc5 {[%clk 0:00:04]}  Na8 {[%clk 0:00:06]} 51. Kd4 {[%clk 0:00:04]}  Kd7 {[%clk 0:00:07]} 52. Kxd5 {[%clk 0:00:04]}  Kc7 {[%clk 0:00:08]} 53. Ke6 {[%clk 0:00:04]}  Kb7 {[%clk 0:00:08]} 54. Ke7 {[%clk 0:00:04]}  Kc6 {[%clk 0:00:09]} 55. Bd4 {[%clk 0:00:04]}  Kd5 {[%clk 0:00:08]} 56. Kf7 {[%clk 0:00:05]}  Ke4 {[%clk 0:00:09]} 57. Kxg7 {[%clk 0:00:05]}  Kf5 {[%clk 0:00:09]} 58. Kxh7 {[%clk 0:00:06]}  Kg5 {[%clk 0:00:09]} 59. h4+ {[%clk 0:00:06]}  Kh5 {[%clk 0:00:09]} 60. Bxf6 {[%clk 0:00:06]}  Nc7 {[%clk 0:00:08]} 61. Bd4 {[%clk 0:00:06]}  Ne6 {[%clk 0:00:07]} 62. a8=Q {[%clk 0:00:06]}  Nf8+ {[%clk 0:00:07]} 63. Qxf8 {[%clk 0:00:06]} 1-0


[Site "https://www.chess.com"]

[Event "Early Titled Tuesday Blitz | February 8 2022"]
[White "Iljushina, Olga"]
[Black "Fernandez, Michael"]
[WhiteFideId "4152280"]
[BlackFideId "5803560"]
[WhiteElo "1937"]
[BlackElo "2110"]
[Result "1/2-1/2"]
[Round "02"]
[TimeControl "180+1"]
[Date "2022.02.08"]
[WhiteClock "0:00:16"]
[BlackClock "0:00:11"]

1. e4 {[%clk 0:03:00]}  c5 {[%clk 0:03:00]} 2. Nf3 {[%clk 0:03:00]}  d6 {[%clk 0:03:00]} 3. d4 {[%clk 0:03:00]}  cxd4 {[%clk 0:03:00]} 4. Nxd4 {[%clk 0:03:00]}  Nf6 {[%clk 0:03:00]} 5. Nc3 {[%clk 0:02:58]}  g6 {[%clk 0:03:01]} 6. Be3 {[%clk 0:02:54]}  a6 {[%clk 0:03:01]} 7. f3 {[%clk 0:02:46]}  b5 {[%clk 0:03:01]} 8. Qd2 {[%clk 0:02:42]}  Bb7 {[%clk 0:03:00]} 9. O-O-O {[%clk 0:02:40]}  Nbd7 {[%clk 0:02:58]} 10. Kb1 {[%clk 0:02:35]}  Rc8 {[%clk 0:02:57]} 11. g4 {[%clk 0:02:13]}  Ne5 {[%clk 0:02:54]} 12. g5 {[%clk 0:02:11]}  Nfd7 {[%clk 0:02:52]} 13. h4 {[%clk 0:02:06]}  Nc5 {[%clk 0:02:40]} 14. Be2 {[%clk 0:01:57]}  Bg7 {[%clk 0:01:55]} 15. h5 {[%clk 0:01:56]}  Rf8 {[%clk 0:01:55]} 16. hxg6 {[%clk 0:01:52]}  hxg6 {[%clk 0:01:55]} 17. f4 {[%clk 0:01:51]}  Nc4 {[%clk 0:01:55]} 18. Bxc4 {[%clk 0:01:49]}  bxc4 {[%clk 0:01:56]} 19. Rh7 {[%clk 0:01:42]}  Bxd4 {[%clk 0:01:35]} 20. Qxd4 {[%clk 0:01:41]}  Ne6 {[%clk 0:01:32]} 21. Qd2 {[%clk 0:01:37]}  Qa5 {[%clk 0:01:32]} 22. Nd5 {[%clk 0:01:24]}  Qxd2 {[%clk 0:01:31]} 23. Rxd2 {[%clk 0:01:21]}  Bxd5 {[%clk 0:01:16]} 24. exd5 {[%clk 0:01:21]}  c3 {[%clk 0:01:07]} 25. bxc3 {[%clk 0:01:19]}  Nc5 {[%clk 0:01:07]} 26. Bd4 {[%clk 0:01:07]}  Kd7 {[%clk 0:00:58]} 27. Re2 {[%clk 0:00:56]}  Na4 {[%clk 0:00:35]} 28. Re3 {[%clk 0:00:54]}  Rc7 {[%clk 0:00:31]} 29. Kc1 {[%clk 0:00:52]}  Rb7 {[%clk 0:00:22]} 30. Kd2 {[%clk 0:00:51]}  Nb2 {[%clk 0:00:21]} 31. Reh3 {[%clk 0:00:46]}  Nc4+ {[%clk 0:00:20]} 32. Ke2 {[%clk 0:00:45]}  Rb2 {[%clk 0:00:19]} 33. Kd3 {[%clk 0:00:44]}  Nb6 {[%clk 0:00:13]} 34. Bg7 {[%clk 0:00:39]}  Rc8 {[%clk 0:00:12]} 35. c4 {[%clk 0:00:37]}  Rb1 {[%clk 0:00:11]} 36. Bc3 {[%clk 0:00:26]}  Rxc4 {[%clk 0:00:09]} 37. Rxf7 {[%clk 0:00:24]}  Rd1+ {[%clk 0:00:09]} 38. Ke2 {[%clk 0:00:23]}  Rxd5 {[%clk 0:00:09]} 39. Bf6 {[%clk 0:00:22]}  Rxc2+ {[%clk 0:00:08]} 40. Ke1 {[%clk 0:00:20]}  Rxa2 {[%clk 0:00:08]} 41. Rxe7+ {[%clk 0:00:20]}  Kc6 {[%clk 0:00:08]} 42. Re2 {[%clk 0:00:18]}  Rxe2+ {[%clk 0:00:07]} 43. Kxe2 {[%clk 0:00:18]}  Nd7 {[%clk 0:00:07]} 44. Rc3+ {[%clk 0:00:18]}  Rc5 {[%clk 0:00:07]} 45. Rxc5+ {[%clk 0:00:18]}  dxc5 {[%clk 0:00:08]} 46. f5 {[%clk 0:00:18]}  Nf8 {[%clk 0:00:09]} 47. Bg7 {[%clk 0:00:17]}  Nh7 {[%clk 0:00:07]} 48. fxg6 {[%clk 0:00:17]}  Nxg5 {[%clk 0:00:08]} 49. Bf6 {[%clk 0:00:17]}  Ne6 {[%clk 0:00:08]} 50. Kd3 {[%clk 0:00:17]}  Kd5 {[%clk 0:00:09]} 51. g7 {[%clk 0:00:16]}  Nxg7 {[%clk 0:00:08]} 52. Bxg7 {[%clk 0:00:16]}  c4+ {[%clk 0:00:08]} 53. Kc3 {[%clk 0:00:16]}  Kc6 {[%clk 0:00:09]} 54. Kxc4 {[%clk 0:00:16]}  a5 {[%clk 0:00:10]} 55. Kb3 {[%clk 0:00:16]}  a4+ {[%clk 0:00:11]} 56. Kxa4 {[%clk 0:00:16]} 1/2-1/2


[Site "https://www.chess.com"]

[Event "Early Titled Tuesday Blitz | February 8 2022"]
[White "Janaszak, Dawid"]
[Black "Makarian, Rudik"]
[WhiteFideId "1119206"]
[BlackFideId "44105681"]
[WhiteElo "2199"]
[BlackElo "2486"]
[Result "0-1"]
[Round "02"]
[TimeControl "180+1"]
[Date "2022.02.08"]
[WhiteClock "0:00:02"]
[BlackClock "0:00:41"]

1. e4 {[%clk 0:03:00]}  e5 {[%clk 0:02:57]} 2. Nf3 {[%clk 0:02:58]}  Nc6 {[%clk 0:02:57]} 3. d4 {[%clk 0:02:58]}  exd4 {[%clk 0:02:56]} 4. Nxd4 {[%clk 0:02:59]}  Nf6 {[%clk 0:02:50]} 5. Nxc6 {[%clk 0:02:59]}  bxc6 {[%clk 0:02:51]} 6. e5 {[%clk 0:02:59]}  Qe7 {[%clk 0:02:49]} 7. Qe2 {[%clk 0:02:58]}  Nd5 {[%clk 0:02:49]} 8. h4 {[%clk 0:02:59]}  Qe6 {[%clk 0:02:47]} 9. g3 {[%clk 0:02:45]}  d6 {[%clk 0:02:42]} 10. c4 {[%clk 0:02:37]}  Nb6 {[%clk 0:02:39]} 11. exd6 {[%clk 0:02:17]}  cxd6 {[%clk 0:02:37]} 12. Be3 {[%clk 0:01:58]}  d5 {[%clk 0:02:18]} 13. Nd2 {[%clk 0:01:47]}  Bb4 {[%clk 0:02:14]} 14. cxd5 {[%clk 0:01:36]}  Nxd5 {[%clk 0:02:08]} 15. Bh3 {[%clk 0:01:22]}  Qe7 {[%clk 0:02:06]} 16. Bxc8 {[%clk 0:01:15]}  Rxc8 {[%clk 0:02:07]} 17. Bg5 {[%clk 0:01:06]}  f6 {[%clk 0:02:01]} 18. Qxe7+ {[%clk 0:00:54]}  Kxe7 {[%clk 0:02:02]} 19. Be3 {[%clk 0:00:54]}  Nxe3 {[%clk 0:01:57]} 20. fxe3 {[%clk 0:00:55]}  Rhd8 {[%clk 0:01:56]} 21. O-O-O {[%clk 0:00:54]}  Rd5 {[%clk 0:01:53]} 22. Nc4 {[%clk 0:00:52]}  Rcd8 {[%clk 0:01:52]} 23. Kc2 {[%clk 0:00:43]}  Ke6 {[%clk 0:01:52]} 24. a3 {[%clk 0:00:42]}  Bc5 {[%clk 0:01:49]} 25. b4 {[%clk 0:00:36]}  Be7 {[%clk 0:01:44]} 26. Rxd5 {[%clk 0:00:29]}  cxd5 {[%clk 0:01:42]} 27. Na5 {[%clk 0:00:24]}  Rc8+ {[%clk 0:01:35]} 28. Kd2 {[%clk 0:00:25]}  Bd6 {[%clk 0:01:35]} 29. g4 {[%clk 0:00:23]}  Be5 {[%clk 0:01:31]} 30. Nb3 {[%clk 0:00:17]}  Rc3 {[%clk 0:01:29]} 31. Nc5+ {[%clk 0:00:18]}  Ke7 {[%clk 0:01:27]} 32. a4 {[%clk 0:00:18]}  Ra3 {[%clk 0:01:27]} 33. a5 {[%clk 0:00:15]}  Bc3+ {[%clk 0:01:26]} 34. Ke2 {[%clk 0:00:15]}  Bxb4 {[%clk 0:01:27]} 35. Nd3 {[%clk 0:00:15]}  Bd6 {[%clk 0:01:28]} 36. Rb1 {[%clk 0:00:15]}  Rxa5 {[%clk 0:01:26]} 37. Rb7+ {[%clk 0:00:15]}  Kf8 {[%clk 0:01:27]} 38. g5 {[%clk 0:00:15]}  fxg5 {[%clk 0:01:27]} 39. hxg5 {[%clk 0:00:16]}  d4 {[%clk 0:01:19]} 40. exd4 {[%clk 0:00:14]}  Rxg5 {[%clk 0:01:19]} 41. Rxa7 {[%clk 0:00:14]}  h5 {[%clk 0:01:20]} 42. Rd7 {[%clk 0:00:13]}  Bg3 {[%clk 0:01:17]} 43. Nc5 {[%clk 0:00:13]}  Rg6 {[%clk 0:01:12]} 44. d5 {[%clk 0:00:13]}  h4 {[%clk 0:01:11]} 45. Ne6+ {[%clk 0:00:13]}  Kg8 {[%clk 0:01:11]} 46. Rd8+ {[%clk 0:00:10]}  Kf7 {[%clk 0:01:11]} 47. Rh8 {[%clk 0:00:10]}  Rg4 {[%clk 0:00:54]} 48. Kf3 {[%clk 0:00:09]}  Ra4 {[%clk 0:00:53]} 49. Rh7 {[%clk 0:00:07]}  Be5 {[%clk 0:00:43]} 50. Ng5+ {[%clk 0:00:06]}  Kg6 {[%clk 0:00:43]} 51. d6 {[%clk 0:00:02]}  Kxg5 {[%clk 0:00:40]} 52. d7 {[%clk 0:00:03]}  Rd4 {[%clk 0:00:40]} 53. Ke3 {[%clk 0:00:01]}  Rxd7 {[%clk 0:00:41]} 54. Ke4 {[%clk 0:00:02]}  Bf6 {[%clk 0:00:41]} 0-1


[Site "https://www.chess.com"]

[Event "Early Titled Tuesday Blitz | February 8 2022"]
[White "Jeet, Jain"]
[Black "Dew, Brian"]
[WhiteFideId "5073022"]
[BlackFideId "6000495"]
[WhiteElo "2085"]
[BlackElo "2118"]
[Result "1-0"]
[Round "02"]
[TimeControl "180+1"]
[Date "2022.02.08"]
[WhiteClock "0:01:52"]
[BlackClock "0:00:02"]

1. e4 {[%clk 0:03:00]}  c6 {[%clk 0:02:53]} 2. d4 {[%clk 0:03:00]}  d5 {[%clk 0:02:54]} 3. e5 {[%clk 0:03:01]}  Bf5 {[%clk 0:02:53]} 4. h4 {[%clk 0:03:00]}  h6 {[%clk 0:02:42]} 5. Nc3 {[%clk 0:02:58]}  e6 {[%clk 0:02:42]} 6. g4 {[%clk 0:02:57]}  Bh7 {[%clk 0:02:41]} 7. Bd3 {[%clk 0:02:58]}  Bxd3 {[%clk 0:02:39]} 8. Qxd3 {[%clk 0:02:59]}  c5 {[%clk 0:02:39]} 9. Nce2 {[%clk 0:02:58]}  cxd4 {[%clk 0:02:34]} 10. Nxd4 {[%clk 0:02:59]}  Nc6 {[%clk 0:02:34]} 11. c3 {[%clk 0:02:58]}  Nxe5 {[%clk 0:02:22]} 12. Qe2 {[%clk 0:02:58]}  Nc6 {[%clk 0:02:18]} 13. h5 {[%clk 0:02:57]}  Nf6 {[%clk 0:02:13]} 14. Nh3 {[%clk 0:02:52]}  Nxd4 {[%clk 0:02:12]} 15. cxd4 {[%clk 0:02:53]}  Bb4+ {[%clk 0:02:12]} 16. Kf1 {[%clk 0:02:52]}  Be7 {[%clk 0:02:05]} 17. Kg2 {[%clk 0:02:49]}  Rc8 {[%clk 0:01:59]} 18. Be3 {[%clk 0:02:43]}  Qb6 {[%clk 0:01:56]} 19. Rhc1 {[%clk 0:02:36]}  O-O {[%clk 0:01:55]} 20. g5 {[%clk 0:02:35]}  hxg5 {[%clk 0:01:54]} 21. Nxg5 {[%clk 0:02:34]}  Rc6 {[%clk 0:01:25]} 22. Rxc6 {[%clk 0:02:28]}  bxc6 {[%clk 0:01:23]} 23. Rh1 {[%clk 0:02:26]}  Rb8 {[%clk 0:01:18]} 24. h6 {[%clk 0:02:26]}  gxh6 {[%clk 0:00:56]} 25. Rxh6 {[%clk 0:02:22]}  Kg7 {[%clk 0:00:55]} 26. Qf3 {[%clk 0:02:09]}  Rg8 {[%clk 0:00:42]} 27. Rh7+ {[%clk 0:02:02]}  Kf8 {[%clk 0:00:11]} 28. Rxf7+ {[%clk 0:02:00]}  Ke8 {[%clk 0:00:11]} 29. Rxf6 {[%clk 0:02:00]}  Qxb2 {[%clk 0:00:01]} 30. Rxe6 {[%clk 0:01:56]}  Kd7 {[%clk 0:00:01]} 31. Rxe7+ {[%clk 0:01:54]}  Kxe7 {[%clk 0:00:02]} 32. Qf7+ {[%clk 0:01:54]}  Kd6 {[%clk 0:00:02]} 33. Bf4# {[%clk 0:01:52]} 1-0


[Site "https://www.chess.com"]

[Event "Early Titled Tuesday Blitz | February 8 2022"]
[White "Jobava, Baadur"]
[Black "Madaminov, Mukhiddin"]
[WhiteFideId "13601520"]
[BlackFideId "14210703"]
[WhiteElo "2617"]
[BlackElo "1916"]
[Result "1-0"]
[Round "02"]
[TimeControl "180+1"]
[Date "2022.02.08"]
[WhiteClock "0:02:30"]
[BlackClock "0:02:24"]

1. e4 {[%clk 0:02:59]}  e5 {[%clk 0:03:00]} 2. Nf3 {[%clk 0:02:59]}  Nc6 {[%clk 0:03:01]} 3. Bc4 {[%clk 0:03:00]}  Nf6 {[%clk 0:03:01]} 4. d3 {[%clk 0:02:59]}  h6 {[%clk 0:03:01]} 5. c3 {[%clk 0:02:59]}  d6 {[%clk 0:03:01]} 6. b4 {[%clk 0:02:55]}  g5 {[%clk 0:02:49]} 7. h3 {[%clk 0:02:55]}  Bg7 {[%clk 0:02:48]} 8. a4 {[%clk 0:02:55]}  O-O {[%clk 0:02:48]} 9. Nbd2 {[%clk 0:02:53]}  Ne7 {[%clk 0:02:45]} 10. a5 {[%clk 0:02:51]}  c6 {[%clk 0:02:42]} 11. Ba2 {[%clk 0:02:50]}  Ng6 {[%clk 0:02:41]} 12. g3 {[%clk 0:02:48]}  d5 {[%clk 0:02:39]} 13. Qe2 {[%clk 0:02:47]}  Re8 {[%clk 0:02:34]} 14. Kf1 {[%clk 0:02:45]}  b6 {[%clk 0:02:29]} 15. Bb3 {[%clk 0:02:39]}  Rb8 {[%clk 0:02:24]} 16. axb6 {[%clk 0:02:39]}  axb6 {[%clk 0:02:24]} 17. Kg2 {[%clk 0:02:38]}  c5 {[%clk 0:02:23]} 18. bxc5 {[%clk 0:02:34]}  bxc5 {[%clk 0:02:23]} 19. Ba4 {[%clk 0:02:33]}  Bd7 {[%clk 0:02:24]} 20. Bxd7 {[%clk 0:02:33]}  Qxd7 {[%clk 0:02:24]} 21. c4 {[%clk 0:02:30]} 1-0


[Site "https://www.chess.com"]

[Event "Early Titled Tuesday Blitz | February 8 2022"]
[White "Jumabayev, Rinat"]
[Black "Kouskoutis, Georgios-Alexandros"]
[WhiteFideId "13702661"]
[BlackFideId "4234049"]
[WhiteElo "2561"]
[BlackElo "2130"]
[Result "1-0"]
[Round "02"]
[TimeControl "180+1"]
[Date "2022.02.08"]
[WhiteClock "0:00:57"]
[BlackClock "0:00:04"]

1. d4 {[%clk 0:03:00]}  Nf6 {[%clk 0:02:59]} 2. Nf3 {[%clk 0:03:01]}  d5 {[%clk 0:02:59]} 3. Bf4 {[%clk 0:03:00]}  c5 {[%clk 0:02:58]} 4. e3 {[%clk 0:03:01]}  Nc6 {[%clk 0:02:57]} 5. Nbd2 {[%clk 0:03:01]}  Bg4 {[%clk 0:02:50]} 6. c3 {[%clk 0:02:59]}  e6 {[%clk 0:02:35]} 7. Qb3 {[%clk 0:02:58]}  Qb6 {[%clk 0:02:34]} 8. Qxb6 {[%clk 0:02:49]}  axb6 {[%clk 0:02:35]} 9. Bb5 {[%clk 0:02:50]}  Nd7 {[%clk 0:02:15]} 10. Ne5 {[%clk 0:02:49]}  Ndxe5 {[%clk 0:01:21]} 11. Bxe5 {[%clk 0:02:49]}  Rc8 {[%clk 0:01:22]} 12. a4 {[%clk 0:02:44]}  f6 {[%clk 0:01:20]} 13. Bg3 {[%clk 0:02:43]}  Be7 {[%clk 0:01:19]} 14. a5 {[%clk 0:02:30]}  bxa5 {[%clk 0:01:10]} 15. dxc5 {[%clk 0:02:20]}  Kf7 {[%clk 0:00:43]} 16. Nb3 {[%clk 0:02:18]}  Ra8 {[%clk 0:00:31]} 17. f3 {[%clk 0:02:02]}  Bf5 {[%clk 0:00:31]} 18. Kf2 {[%clk 0:02:00]}  Rhc8 {[%clk 0:00:20]} 19. Rhe1 {[%clk 0:01:55]}  e5 {[%clk 0:00:13]} 20. Kg1 {[%clk 0:01:45]}  Be6 {[%clk 0:00:13]} 21. Bf2 {[%clk 0:01:41]}  d4 {[%clk 0:00:13]} 22. c4 {[%clk 0:01:41]}  dxe3 {[%clk 0:00:13]} 23. Bxe3 {[%clk 0:01:42]}  Nb4 {[%clk 0:00:08]} 24. Re2 {[%clk 0:01:30]}  Nd3 {[%clk 0:00:06]} 25. Rxa5 {[%clk 0:01:26]}  Rxa5 {[%clk 0:00:05]} 26. Nxa5 {[%clk 0:01:27]}  Nxc5 {[%clk 0:00:04]} 27. Rd2 {[%clk 0:01:18]}  b6 {[%clk 0:00:04]} 28. Nc6 {[%clk 0:01:17]}  Kf8 {[%clk 0:00:02]} 29. b4 {[%clk 0:01:11]}  Nb3 {[%clk 0:00:03]} 30. Rd3 {[%clk 0:01:10]}  Nd4 {[%clk 0:00:03]} 31. Bxd4 {[%clk 0:00:59]}  exd4 {[%clk 0:00:04]} 32. Rxd4 {[%clk 0:00:58]}  Bxb4 {[%clk 0:00:04]} 33. Nxb4 {[%clk 0:00:57]} 1-0


[Site "https://www.chess.com"]

[Event "Early Titled Tuesday Blitz | February 8 2022"]
[White "Kanyamarala, Tarun"]
[Black "Mejia, Cherry Ann"]
[WhiteFideId "45004714"]
[BlackFideId "5206880"]
[WhiteElo "2144"]
[BlackElo "2007"]
[Result "1-0"]
[Round "02"]
[TimeControl "180+1"]
[Date "2022.02.08"]
[WhiteClock "0:01:53"]
[BlackClock "0:00:04"]

1. d4 {[%clk 0:03:00]}  d5 {[%clk 0:02:59]} 2. c4 {[%clk 0:03:01]}  dxc4 {[%clk 0:02:59]} 3. e3 {[%clk 0:03:01]}  e5 {[%clk 0:02:58]} 4. Nf3 {[%clk 0:03:00]}  exd4 {[%clk 0:02:58]} 5. Bxc4 {[%clk 0:02:59]}  Bb4+ {[%clk 0:02:55]} 6. Bd2 {[%clk 0:02:51]}  Bxd2+ {[%clk 0:02:49]} 7. Nbxd2 {[%clk 0:02:48]}  dxe3 {[%clk 0:02:41]} 8. Qe2 {[%clk 0:02:48]}  Qe7 {[%clk 0:02:27]} 9. fxe3 {[%clk 0:02:38]}  Nf6 {[%clk 0:02:23]} 10. O-O-O {[%clk 0:02:35]}  O-O {[%clk 0:02:14]} 11. Kb1 {[%clk 0:02:34]}  Bf5+ {[%clk 0:02:01]} 12. Ka1 {[%clk 0:02:35]}  Nc6 {[%clk 0:02:00]} 13. Rhf1 {[%clk 0:02:28]}  Bg6 {[%clk 0:01:44]} 14. Nh4 {[%clk 0:02:25]}  Bh5 {[%clk 0:01:41]} 15. Nf5 {[%clk 0:02:19]}  Qe5 {[%clk 0:01:23]} 16. g4 {[%clk 0:02:19]}  Bxg4 {[%clk 0:01:11]} 17. Qg2 {[%clk 0:02:15]}  Bxf5 {[%clk 0:01:06]} 18. Nf3 {[%clk 0:02:14]}  Qe4 {[%clk 0:00:51]} 19. Bd3 {[%clk 0:02:13]}  Qg4 {[%clk 0:00:48]} 20. Qe2 {[%clk 0:02:11]}  Bxd3 {[%clk 0:00:45]} 21. Rxd3 {[%clk 0:02:12]}  Rad8 {[%clk 0:00:30]} 22. Rg1 {[%clk 0:02:09]}  Qc4 {[%clk 0:00:16]} 23. Qg2 {[%clk 0:02:09]}  g6 {[%clk 0:00:16]} 24. Rc3 {[%clk 0:02:09]}  Qe4 {[%clk 0:00:15]} 25. Qh3 {[%clk 0:02:07]}  Ne5 {[%clk 0:00:13]} 26. Ng5 {[%clk 0:02:05]}  Qd5 {[%clk 0:00:06]} 27. a3 {[%clk 0:02:03]}  h5 {[%clk 0:00:06]} 28. Qh4 {[%clk 0:02:01]}  Neg4 {[%clk 0:00:06]} 29. h3 {[%clk 0:02:01]}  Nh6 {[%clk 0:00:05]} 30. e4 {[%clk 0:01:57]}  Qd4 {[%clk 0:00:05]} 31. Nf3 {[%clk 0:01:55]}  Qe3 {[%clk 0:00:04]} 32. Rxe3 {[%clk 0:01:53]} 1-0


[Site "https://www.chess.com"]

[Event "Early Titled Tuesday Blitz | February 8 2022"]
[White "Kanyamarala, Trisha"]
[Black "Haukenfrers, Dale"]
[WhiteFideId "45004722"]
[BlackFideId "2603780"]
[WhiteElo "2002"]
[BlackElo "1984"]
[Result "1-0"]
[Round "02"]
[TimeControl "180+1"]
[Date "2022.02.08"]
[WhiteClock "0:01:47"]
[BlackClock "0:01:23"]

1. c4 {[%clk 0:02:57]}  d6 {[%clk 0:02:59]} 2. Nc3 {[%clk 0:02:56]}  c6 {[%clk 0:02:59]} 3. d4 {[%clk 0:02:55]}  Na6 {[%clk 0:02:59]} 4. e4 {[%clk 0:02:53]}  g6 {[%clk 0:02:59]} 5. Nf3 {[%clk 0:02:53]}  Bg7 {[%clk 0:02:59]} 6. g3 {[%clk 0:02:53]}  f5 {[%clk 0:02:56]} 7. Bg2 {[%clk 0:02:51]}  Nf6 {[%clk 0:02:47]} 8. e5 {[%clk 0:02:44]}  Ng4 {[%clk 0:02:28]} 9. h3 {[%clk 0:02:41]}  Nh6 {[%clk 0:02:27]} 10. exd6 {[%clk 0:02:30]}  exd6 {[%clk 0:02:13]} 11. Bg5 {[%clk 0:02:30]}  Qd7 {[%clk 0:02:01]} 12. O-O {[%clk 0:02:25]}  O-O {[%clk 0:02:00]} 13. Re1 {[%clk 0:02:24]}  Nf7 {[%clk 0:01:59]} 14. Re7 {[%clk 0:02:20]}  Qd8 {[%clk 0:01:59]} 15. Rxf7 {[%clk 0:02:17]}  Rxf7 {[%clk 0:01:55]} 16. Bxd8 {[%clk 0:02:17]}  Be6 {[%clk 0:01:55]} 17. Ng5 {[%clk 0:02:13]}  Bxc4 {[%clk 0:01:54]} 18. Nxf7 {[%clk 0:02:13]}  Bxf7 {[%clk 0:01:53]} 19. Bg5 {[%clk 0:02:12]}  Re8 {[%clk 0:01:49]} 20. Qd2 {[%clk 0:02:12]}  d5 {[%clk 0:01:46]} 21. Re1 {[%clk 0:02:10]}  Nc7 {[%clk 0:01:45]} 22. Rxe8+ {[%clk 0:02:10]}  Nxe8 {[%clk 0:01:45]} 23. Qe3 {[%clk 0:02:09]}  Nd6 {[%clk 0:01:42]} 24. Qe7 {[%clk 0:02:06]}  Bf8 {[%clk 0:01:39]} 25. Qe2 {[%clk 0:02:02]}  a5 {[%clk 0:01:32]} 26. Be7 {[%clk 0:02:01]}  a4 {[%clk 0:01:30]} 27. Bxf8 {[%clk 0:02:01]}  Kxf8 {[%clk 0:01:31]} 28. Qe5 {[%clk 0:02:00]}  a3 {[%clk 0:01:29]} 29. Qxd6+ {[%clk 0:02:00]}  Kg7 {[%clk 0:01:28]} 30. bxa3 {[%clk 0:02:00]}  c5 {[%clk 0:01:27]} 31. Qxc5 {[%clk 0:01:59]}  b6 {[%clk 0:01:27]} 32. Qd6 {[%clk 0:01:59]}  Kh6 {[%clk 0:01:27]} 33. Bxd5 {[%clk 0:01:58]}  b5 {[%clk 0:01:27]} 34. Bxf7 {[%clk 0:01:58]}  b4 {[%clk 0:01:27]} 35. Qf4+ {[%clk 0:01:56]}  g5 {[%clk 0:01:27]} 36. Qd6+ {[%clk 0:01:55]}  Kg7 {[%clk 0:01:27]} 37. Bb3 {[%clk 0:01:53]}  bxa3 {[%clk 0:01:27]} 38. Qe7+ {[%clk 0:01:53]}  Kh6 {[%clk 0:01:27]} 39. Qf6+ {[%clk 0:01:51]}  Kh5 {[%clk 0:01:25]} 40. Bd1+ {[%clk 0:01:51]}  g4 {[%clk 0:01:25]} 41. Qxf5+ {[%clk 0:01:46]}  Kh6 {[%clk 0:01:24]} 42. Qf6+ {[%clk 0:01:46]}  Kh5 {[%clk 0:01:23]} 43. Bxg4# {[%clk 0:01:47]} 1-0


[Site "https://www.chess.com"]